Workbook

Sheet Table Design Before
B1: Top 10 Domestic Routes by Revenue
D2: Revenue | F2: Margin | H2: Per Passenger
B3: From | C3: To | D3: Revenue Dollars | E3: Revenue Percent | F3: Margin Dollars | G3: Margin Percent | H3: Revenue per Passenger | I3: Margin per Passenger
B4: Atlanta | C4: New York | D4: 3602000 | E4: =D4/$D$14 -> 0.08088202272 | F4: 955000 | G4: =F4/$F$14 -> 0.09012835032 | H4: 245 | I4: 65
B5: Chicago | C5: New York | D5: 4674000 | E5: 0.1049535187 | F5: 336000 | G5: 0.03171007928 | H5: 222 | I5: 16
B6: Columbus (Ohio) | C6: New York | D6: 2483000 | E6: 0.05575515337 | F6: 1536000 | G6: 0.1449603624 | H6: 202 | I6: 125
B7: New York | C7: Detroit | D7: 12180000 | E7: 0.2734988997 | F7: 2408000 | G7: 0.2272555681 | H7: 177 | I7: 35
B8: New York | C8: Washington | D8: 6355000 | E8: 0.1426999596 | F8: 1230000 | G8: 0.1160815402 | H8: 186 | I8: 36
B9: New York | C9: Philadelphia | D9: 3582000 | E9: 0.08043292765 | F9: -716000 | G9: -0.06757266893 | H9: 125 | I9: -25
B10: New York | C10: San Francisco | D10: 3221000 | E10: 0.07232676158 | F10: 1856000 | G10: 0.1751604379 | H10: 590 | I10: 340
B11: New York | C11: Phoenix | D11: 2846000 | E11: 0.06390622895 | F11: 1436000 | G11: 0.1355228388 | H11: 555 | I11: 280
B12: New York | C12: Toronto | D12: 2799000 | E12: 0.06285085553 | F12: 1088000 | G12: 0.1026802567 | H12: 450 | I12: 175
B13: New York | C13: Seattle | D13: 2792000 | E13: 0.06269367225 | F13: 467000 | G13: 0.04407323518 | H13: 448.4220788 | I13: 75
B14: Total Domestic routes | D14: =SUM(D4:D13) -> 44534000 | F14: =SUM(F4:F13) -> 10596000 | H14: 271.7223693 | I14: 52.52599274

Sheet Table Design After
B1: Top 10 Domestic Routes by Revenue
D2: Revenue | F2: Margin | H2: Per Passenger
B3: From | C3: To | D3: Revenue $ (000's) | E3: Revenue % | F3: Margin $ (000's) | G3: Margin % | H3: $ per Passenger | I3: Margin $ per Passenger
B4: New York | C4: Detroit | D4: 12180000 | E4: =D4/$D$14 -> 0.2734988997 | F4: 2408000 | G4: =F4/$F$14 -> 0.2272555681 | H4: 177 | I4: 35
B5: New York | C5: Washington | D5: 6355000 | E5: 0.1426999596 | F5: 1230000 | G5: 0.1160815402 | H5: 186 | I5: 36
B6: Chicago | C6: New York | D6: 4674000 | E6: 0.1049535187 | F6: 336000 | G6: 0.03171007928 | H6: 222 | I6: 16
B7: Atlanta | C7: New York | D7: 3602000 | E7: 0.08088202272 | F7: 955000 | G7: 0.09012835032 | H7: 245 | I7: 65
B8: New York | C8: Philadelphia | D8: 3582000 | E8: 0.08043292765 | F8: -716000 | G8: -0.06757266893 | H8: 125 | I8: -25
B9: New York | C9: San Francisco | D9: 3221000 | E9: 0.07232676158 | F9: 1856000 | G9: 0.1751604379 | H9: 590 | I9: 340
B10: New York | C10: Phoenix | D10: 2846000 | E10: 0.06390622895 | F10: 1436000 | G10: 0.1355228388 | H10: 555 | I10: 280
B11: New York | C11: Toronto | D11: 2799000 | E11: 0.06285085553 | F11: 1088000 | G11: 0.1026802567 | H11: 450 | I11: 175
B12: New York | C12: Seattle | D12: 2792000 | E12: 0.06269367225 | F12: 467000 | G12: 0.04407323518 | H12: 448.4220788 | I12: 75
B13: Columbus (Ohio) | C13: New York | D13: 2483000 | E13: 0.05575515337 | F13: 1536000 | G13: 0.1449603624 | H13: 202 | I13: 125
B14: Total Domestic routes | D14: =SUM(D4:D13) -> 44534000 | F14: =SUM(F4:F13) -> 10596000 | H14: 271.7223693 | I14: 52.52599274

Sheet Number Formatting
B4: Formatting Large Numbers
C5: January | D5: February | E5: March
B6: North | C6: 117943.6058 | D6: 380439.2158 | E6: 462846.0807 | F6: =SUM(C6:E6) -> 961228.9023
B7: Northeast | C7: 24304.53444 | D7: 802648.4257 | E7: 327504.5376 | F7: 1154457.498
B8: East | C8: 313415.7003 | D8: 779825.6065 | E8: 904132.3397 | F8: 1997373.646
B9: Southeast | C9: 397459.2107 | D9: 466308.9009 | E9: 831589.0752 | F9: 1695357.187
B10: South | C10: 839626.3588 | D10: 117786.1352 | E10: 800466.2099 | F10: 1757878.704
B11: Southwest | C11: 622572.2345 | D11: 976698.8148 | E11: 807868.2867 | F11: 2407139.336
B12: West | C12: 474499.1504 | D12: 78914.15474 | E12: 876094.8015 | F12: 1429508.107
B13: Northwest | C13: 840582.6821 | D13: 101804.6028 | E13: 615611.2431 | F13: 1557998.528
B14: Totals | C14: =SUM(C6:C13) -> 3630403.477 | D14: =SUM(D6:D13) -> 3704425.856 | E14: =SUM(E6:E13) -> 5626112.575 | F14: 12960941.91
B19: Understanding Postive and Negative Formatting
B20: -1890
B21: -525
B22: 1982
B23: 2744
B24: 526
B25: 7419
B30: Better Formatting for Percentages
A31: North | B31: 0.47
A32: South | B32: 0.5
A33: East | B33: -0.23
A34: West | B34: -0.43
B39: Suppressing Zeros
C40: Jim | D40: Tim | E40: Kim
B41: Printers | C41: 37000 | D41: 64000 | E41: 24000
B42: Copiers | C42: 18000 | D42: 29000 | E42: 58000
B43: Scanners | C43: 0 | D43: 77000 | E43: 88000
B44: Service Contracts | C44: 16000 | D44: 12000 | E44: 0
B45: Warranties | C45: 65000 | D45: 88000 | E45: 16000
B53: Adding your own Custom Format Criteria
B54: 733
B55: 309
B56: 281
B57: 790
B58: 709
B59: 500
B60: 624
B61: 341
B65: Formatting Dates and Times
B66: 2013-01-01
B67: 2013-02-01
B68: 2013-03-01
B69: 2013-04-01
B70: 41305.81944
B71: 2013-01-31T19:42:53

Sheet Get Color Codes
B1: 1
B2: 2
B3: 3
B4: 4
B5: 5
B6: 6
B7: 7
B8: 8
B9: 9
B10: 10
B11: 11
B12: 12
B13: 13
B14: 14
B15: 15
B16: 16
B17: 17
B18: 18
B19: 19
B20: 20
B21: 21
B22: 22
B23: 23
B24: 24
B25: 25
B26: 26
B27: 27
B28: 28
B29: 29
B30: 30
B31: 31
B32: 32
B33: 33
B34: 34
B35: 35
B36: 36
B37: 37
B38: 38
B39: 39
B40: 40
B41: 41
B42: 42
B43: 43
B44: 44
B45: 45
B46: 46
B47: 47
B48: 48
B49: 49
B50: 50
B51: 51
B52: 52
B53: 53
B54: 54
B55: 55
B56: 56
